bitfinex/quotes_ETHUSD_20251212
["timestamp","ask_amount","ask_price","bid_price","bid_amount"]
[1765509112924,0.405504,3258.2,3257.6,0.4999]
[1765509113146,0.58047529,3257.7,3257.6,0.4999]
[1765509113351,0.58047529,3257.7,3257.6,0.9948]
[1765509113522,6.23092718,3257.7,3257.6,0.9948]
[1765509113920,6.8540199,3257.7,3257.6,0.9948]
[1765509114120,6.8540199,3257.7,3257.6,0.001]
[1765509114352,22.2433489,3257.7,3257.6,0.001]
[1765509114552,22.4293489,3257.7,3257.6,0.001]
[1765509114853,22.45589526,3257.7,3257.6,0.001]
[1765509115053,13.44505426,3257.7,3257.6,0.4959]
[1765509115225,13.25905426,3257.7,3257.6,0.4959]
[1765509115428,15.30758826,3257.7,3257.6,0.4959]
[1765509115634,12.53210326,3257.7,3257.6,0.4959]
[1765509115835,3.65012565,3257.7,3257.6,0.9948]
[1765509116457,3.65012565,3257.7,3257.6,0.4959]
[1765509117266,3.65012565,3257.7,3257.6,0.001]
[1765509117267,9.30852053,3257.7,3257.6,0.001]
[1765509117438,9.71402453,3257.7,3257.6,0.001]
[1765509117737,20.41671553,3257.7,3257.6,0.001]
[1765509117932,13.62265765,3257.7,3257.6,0.001]
[1765509118359,13.22265765,3257.7,3257.6,0.001]
[1765509118564,9.51048565,3257.7,3257.6,0.001]
[1765509120674,3.65012565,3257.7,3257.6,0.9948]
[1765509121737,2.56965036,3257.7,3257.6,0.9948]
[1765509123993,3.0692735,3258.1,3257.6,0.9948]
[1765509124293,3.0692735,3258.1,3258.0,0.4949]
[1765509124647,3.0692735,3258.1,3258.0,0.9938]
[1765509125048,0.58047529,3258.5,3258.0,0.9938]
[1765509125282,6.13798182,3258.4,3258.1,0.6982]
[1765509125749,3.6494662,3258.4,3258.3,0.4949]
[1765509125949,3.6494662,3258.4,3258.3,0.9938]
[1765509126944,3.63719118,3258.4,3258.3,0.9938]
[1765509127150,12.27219732,3259.4,3258.3,0.9938]
[1765509127361,3.06804933,3259.4,3259.3,0.4949]
[1765509127878,3.64852462,3259.4,3259.3,0.9938]
[1765509129493,3.64852462,3259.4,3259.3,0.4949]
[1765509129494,3.06804933,3259.4,3259.3,0.4949]
[1765509130783,3.06804933,3259.4,3259.3,0.9938]
[1765509130989,3.06804933,3259.4,3259.3,0.4949]
[1765509132384,0.58047529,3259.3,3258.6,0.4989]
[1765509132788,0.58047529,3259.3,3259.2,0.6942]
[1765509132965,0.58047529,3259.3,3259.2,0.4949]
[1765509133162,3.64861875,3259.3,3259.2,0.4949]
[1765509134110,0.58047529,3259.2,3259.0,0.647]
[1765509134385,0.58047529,3259.2,3258.6,0.4532]
[1765509135162,9.20499522,3259.1,3258.6,0.4532]
[1765509138588,0.58047529,3259.0,3258.6,0.4532]
[1765509139385,0.58047529,3258.8,3258.6,0.4532]
[1765509139790,0.58047529,3258.8,3258.7,0.4789]
[1765509140790,0.58047529,3258.8,3258.7,0.9542]
[1765509141267,0.58047529,3258.8,3258.7,0.4789]
[1765509141466,3.6490895,3258.8,3258.7,0.4789]
[1765509141886,9.30296,3258.8,3258.7,0.4789]
[1765509142492,9.30296,3258.8,3258.4,0.4753]
[1765509142493,18.62270263,3258.8,3258.1,0.1993]
[1765509142679,0.58047529,3258.3,3258.1,0.1993]
[1765509143193,0.58047529,3258.3,3258.2,0.4789]
[1765509143395,3.64956039,3258.3,3258.2,0.4789]
[1765509143579,3.64956039,3258.3,3257.6,0.001]
[1765509143580,10.22253059,3258.3,3257.6,0.001]
[1765509143763,0.58047529,3258.0,3257.8,0.4753]
[1765509143960,5.65620153,3258.2,3257.6,0.4763]
[1765509143961,0.58047529,3258.1,3257.6,0.4763]
[1765509145495,0.58047529,3257.9,3257.6,0.4763]
[1765509145893,0.58047529,3257.9,3257.8,0.4789]
[1765509146277,0.58047529,3257.9,3257.8,0.9542]
[1765509147678,0.486,3258.2,3257.8,0.9542]
[1765509147679,3.0693557,3258.1,3257.8,0.9542]
[1765509147875,3.0693557,3258.1,3257.9,0.4753]
[1765509148080,3.0693557,3258.1,3258.0,0.6779]
[1765509148695,3.0693557,3258.1,3258.0,1.1532]
[1765509149767,3.06916448,3258.3,3258.0,1.1532]
[1765509149768,0.58047529,3258.3,3258.0,1.1532]
[1765509150100,0.58047529,3258.3,3258.0,0.199]
[1765509150299,0.58047529,3258.3,3257.6,0.001]
[1765509150499,0.58047529,3258.3,3258.0,0.4753]
[1765509150700,0.58047529,3258.3,3257.7,0.4753]
[1765509151009,17.93275055,3258.4,3258.2,0.6779]
[1765509151010,3.06899091,3258.4,3258.2,0.6779]
[1765509151198,3.06899091,3258.4,3258.3,0.4789]
[1765509151373,3.06899091,3258.4,3258.3,0.9542]
[1765509151700,0.58047529,3258.6,3258.3,0.9542]
[1765509151877,0.58047529,3258.6,3258.4,0.4753]
[1765509152078,0.58047529,3258.7,3258.5,0.4789]
[1765509152281,0.58047529,3258.7,3258.6,0.4789]
[1765509152704,0.58047529,3258.7,3258.6,0.9542]
[1765509154005,3.64918367,3258.7,3258.6,0.9542]
[1765509156409,3.64918367,3258.7,3258.6,0.4789]
[1765509156702,3.64918367,3258.7,3258.6,0.9542]
[1765509161827,3.06870838,3258.7,3258.6,0.9542]
[1765509162325,6.71732707,3259.0,3258.6,0.9542]
[1765509162528,6.71732707,3259.0,3258.2,0.199]
[1765509162529,6.71732707,3259.0,3258.7,0.4753]
[1765509162826,3.64890118,3259.0,3258.9,0.4789]
[1765509163515,3.64890118,3259.0,3258.9,0.9704]
[1765509164029,3.06842589,3259.0,3258.9,0.9704]
[1765509164398,0.58047529,3259.3,3258.9,0.9704]
[1765509164609,0.58047529,3259.3,3259.2,0.4654]
[1765509164943,0.58047529,3259.3,3258.6,0.4915]
[1765509165097,0.4348,3259.1,3258.6,0.4915]
[1765509166652,6.13685178,3259.0,3258.6,0.4915]
[1765509166823,0.58047529,3258.9,3258.6,0.4915]
[1765509167128,0.58047529,3258.9,3258.3,0.4915]
[1765509168537,0.72527529,3258.9,3258.3,0.4915]
[1765509168740,9.20584263,3258.8,3258.3,0.4915]
[1765509168946,0.58047529,3258.7,3258.0,0.4915]
[1765509169240,0.58047529,3258.7,3258.1,0.4915]
[1765509169641,0.4348,3258.2,3257.6,0.001]
[1765509169804,0.4348,3258.2,3257.7,0.4915]
[1765509170000,1.06647529,3258.7,3258.1,0.6649]
[1765509170405,1.06647529,3258.7,3258.1,1.1564]
[1765509170604,0.58047529,3258.5,3258.1,1.1564]
[1765509172724,0.58047529,3258.3,3258.1,0.4654]
[1765509173242,0.114,3258.2,3257.8,0.4915]
[1765509174837,6.138547,3258.1,3257.6,0.4925]
[1765509175023,9.2078205,3258.1,3257.6,0.4925]
[1765509175447,6.138547,3258.1,3257.6,0.4925]
[1765509176017,3.64974879,3258.1,3258.0,0.4654]
[1765509180744,3.64974879,3258.1,3258.0,0.9569]
[1765509181119,3.50323712,3259.0,3258.0,0.9569]
[1765509181120,3.0682376,3259.2,3258.0,0.9569]
[1765509181313,0.58047529,3258.9,3258.2,0.4654]
[1765509181514,0.58047529,3258.9,3257.6,0.001]
[1765509181747,15.82812945,3259.0,3257.7,0.4915]
[1765509181748,12.75970356,3259.0,3257.7,0.4915]
[1765509181936,0.58047529,3258.9,3257.7,0.4915]
[1765509182444,0.72527529,3258.9,3257.7,0.4915]
[1765509182642,0.58047529,3258.9,3257.8,0.486]
[1765509182942,0.58047529,3258.9,3258.8,0.4654]
[1765509183148,3.80847529,3258.7,3257.7,0.4915]
[1765509183320,0.58047529,3258.5,3257.7,0.4915]
[1765509183731,1.01527529,3258.5,3257.7,0.4915]
[1765509183949,1.50677529,3258.5,3257.7,0.4915]
[1765509184848,1.07197529,3258.5,3257.6,0.001]
[1765509185024,0.4348,3258.4,3257.6,0.001]
[1765509185229,0.486,3258.3,3257.6,0.001]
[1765509185423,0.58047529,3258.1,3257.6,0.001]
[1765509186049,0.4915,3258.0,3257.6,0.001]
[1765509186421,0.4915,3258.0,3257.6,0.4925]
[1765509187128,0.4915,3258.0,3257.6,0.001]
[1765509187330,0.114,3257.7,3257.6,0.001]
[1765509188050,0.58047529,3257.8,3257.6,0.001]
[1765509189449,3.65012565,3257.7,3257.6,0.001]
[1765509190651,3.76442565,3257.7,3257.6,0.001]
[1765509190961,3.65012565,3257.7,3257.6,0.4664]
[1765509191162,3.65012565,3257.7,3257.6,0.9579]
[1765509191954,3.76412565,3257.7,3257.6,0.001]
[1765509194852,9.90342637,3257.7,3257.2,0.46991]
[1765509195055,9.90342637,3257.7,3257.0,0.187]
[1765509195056,0.4533,3257.4,3257.0,0.187]
[1765509196457,6.14005464,3257.3,3257.0,0.187]
[1765509196759,6.14005464,3257.3,3257.0,0.001]
[1765509197059,0.58047529,3257.2,3257.0,0.001]
[1765509198469,3.65059686,3257.2,3257.1,0.4889]
[1765509199339,4.21789686,3257.2,3257.0,0.001]
[1765509199664,0.0045,3257.1,3257.0,0.001]
[1765509200064,0.12745566,3257.1,3257.0,0.001]
[1765509200632,3.88794678,3257.1,3257.0,0.001]
[1765509201056,4.34094678,3257.1,3257.0,0.001]
[1765509201868,3.88794678,3257.1,3257.0,0.001]
[1765509202240,4.34094678,3257.1,3257.0,0.001]
[1765509203779,3.88794678,3257.1,3257.0,0.001]
[1765509204269,4.34094678,3257.1,3257.0,0.001]
[1765509204757,9.76920578,3257.1,3257.0,0.001]
[1765509204943,6.61115278,3257.1,3257.0,0.001]
[1765509205146,4.25964678,3257.1,3257.0,0.4644]
[1765509205666,3.77364678,3257.1,3257.0,0.4644]
[1765509205864,3.77364678,3257.1,3257.0,0.9559]
[1765509205865,3.65069112,3257.1,3257.0,0.9559]
[1765509209885,3.65069112,3257.1,3257.0,0.4644]
[1765509210094,0.6199,3256.7,3256.6,1e-08]
[1765509210376,0.58047529,3257.0,3256.6,1e-08]
[1765509210576,0.58047529,3257.0,3256.9,0.4634]
[1765509210777,0.58047529,3256.8,3256.6,0.49150001]
[1765509211274,0.58047529,3256.8,3256.7,0.4634]
[1765509211678,0.58047529,3256.8,3256.7,0.9549]
[1765509212546,6.14080874,3256.9,3256.7,0.9549]
[1765509212746,3.65087966,3256.9,3256.8,0.9549]
[1765509214458,0.92210516,3257.2,3256.8,0.9549]
[1765509214659,3.99225572,3257.2,3257.1,0.6583]
[1765509214977,3.07015056,3257.2,3257.1,0.6583]
[1765509215275,3.07015056,3257.2,3257.1,1.1498]
[1765509216492,10.49761407,3257.2,3256.6,1e-08]
[1765509216785,0.58047529,3256.9,3256.6,0.49150001]
[1765509217173,0.58047529,3256.9,3256.8,0.4634]
[1765509217373,0.58047529,3256.9,3256.8,0.9549]
[1765509217578,6.1406202,3257.0,3256.8,0.9549]
[1765509217765,3.0703101,3257.0,3256.9,0.9549]
[1765509218990,1.06647529,3257.7,3256.9,0.9549]
[1765509218991,0.58047529,3257.5,3256.9,0.9549]
[1765509219193,0.58047529,3257.5,3257.1,0.4634]
[1765509219690,0.58047529,3257.5,3256.6,1e-08]
[1765509219894,0.58047529,3257.5,3256.7,0.9775]
[1765509220094,0.58047529,3257.5,3256.7,0.4915]
[1765509220267,0.58047529,3257.5,3256.6,1e-08]
[1765509220268,1.03687529,3257.5,3256.6,1e-08]
[1765509220482,0.58047529,3257.2,3256.6,1e-08]
[1765509221182,0.58047529,3256.9,3256.6,0.49150001]
[1765509221583,0.58047529,3256.9,3256.8,0.4634]
[1765509222081,0.58047529,3256.9,3256.8,0.9549]
[1765509222592,0.67317529,3256.9,3256.6,1e-08]
[1765509223099,0.1662,3256.8,3256.6,1e-08]
[1765509223300,0.47440797,3256.7,3256.6,1e-08]
[1765509223681,0.59737649,3256.7,3256.6,1e-08]
[1765509223915,0.12296852,3256.7,3256.6,0.49850001]
[1765509224798,6.72136286,3256.9,3256.6,1e-08]
[1765509225002,0.0927,3256.7,3256.6,1e-08]
[1765509225206,3.16329293,3256.7,3256.6,1e-08]
[1765509226113,3.07059293,3256.7,3256.6,1e-08]
[1765509226315,3.65106822,3256.7,3256.6,1e-08]
[1765509227012,3.86673371,3256.7,3256.6,1e-08]
[1765509227508,3.77403371,3256.7,3256.6,1e-08]
[1765509227886,3.77403371,3256.7,3256.6,0.49850001]
[1765509228092,3.86673371,3256.7,3256.6,1e-08]
[1765509228699,3.77403371,3256.7,3256.6,1e-08]
[1765509229221,3.86743371,3256.7,3256.6,1e-08]
[1765509230528,3.77403371,3256.7,3256.6,0.49850001]
[1765509231230,3.65106822,3256.7,3256.6,0.98980001]
[1765509231522,3.65106822,3256.7,3256.6,0.49850001]
[1765509232393,3.74376822,3256.7,3256.6,1e-08]
[1765509235930,9.40515931,3256.7,3256.6,1e-08]
[1765509236243,9.31245931,3256.7,3256.6,0.49850001]
[1765509238242,9.40585931,3256.7,3256.6,1e-08]
[1765509239619,9.31245931,3256.7,3256.6,1e-08]
[1765509240104,9.40585931,3256.7,3256.6,1e-08]
[1765509240704,9.31245931,3256.7,3256.6,0.49850001]
[1765509241013,3.07059293,3256.7,3256.6,0.98980001]
[1765509242557,6.14089025,3256.9,3256.6,0.98980001]
[1765509242755,6.14089025,3256.9,3256.8,0.4985]
[1765509242756,3.07040437,3256.9,3256.8,0.4985]
[1765509243054,6.14089025,3256.9,3256.6,0.49130001]
[1765509243445,5.66139109,3256.7,3256.6,1e-08]
[1765509243628,6.14089025,3256.9,3256.7,0.4913]
[1765509243831,6.14089025,3256.9,3256.8,0.4985]
[1765509243832,3.07040437,3256.9,3256.8,0.4985]
[1765509244141,3.07040437,3256.9,3256.8,0.9898]
[1765509244719,0.58047529,3257.0,3256.8,0.9898]
[1765509244914,3.07029503,3257.1,3257.0,0.4985]
[1765509244915,0.58047529,3257.1,3257.0,0.4985]
[1765509245115,3.07017501,3257.2,3257.0,0.4985]
[1765509245438,3.07017501,3257.2,3257.1,1.1774]
[1765509248524,3.07017501,3257.2,3257.1,1.6634]
[1765509248919,0.58047529,3257.4,3257.1,1.6634]
[1765509249128,0.58047529,3257.4,3257.3,0.4985]
[1765509249525,0.58047529,3257.4,3257.3,0.9898]
[1765509250245,0.67317529,3257.4,3256.6,1e-08]
[1765509250539,6.33456638,3257.4,3256.8,0.1876]
[1765509250942,6.14005464,3257.3,3256.9,0.4913]
[1765509251342,3.07002732,3257.3,3257.2,0.4985]
[1765509251545,3.65050261,3257.3,3257.2,0.4985]
[1765509251752,3.65050261,3257.3,3257.2,0.9898]
[1765509252545,3.65050261,3257.3,3257.2,0.4985]
[1765509252748,6.81322993,3257.3,3257.0,0.4913]
[1765509253123,6.81322993,3257.3,3256.9,0.486]
[1765509253445,15.54133902,3257.3,3256.8,0.6425]
[1765509253648,15.54133902,3257.3,3256.9,0.486]
[1765509253947,15.54133902,3257.3,3256.8,1.1285]
[1765509254651,15.54133902,3257.3,3256.8,0.6736]
[1765509254816,15.54133902,3257.3,3256.9,0.4549]
[1765509255150,15.54133902,3257.3,3256.8,0.1876]
[1765509255360,15.99413902,3257.3,3256.6,1e-08]
[1765509255534,0.4564,3257.2,3256.7,0.486]
[1765509255924,0.58047529,3257.2,3256.7,0.486]
[1765509256124,0.58047529,3257.2,3256.7,0.9409]
[1765509257049,1.03687529,3257.2,3256.7,0.9409]
[1765509257238,0.0927,3256.8,3256.6,1e-08]
[1765509257438,9.66344749,3257.1,3256.6,1e-08]
[1765509257825,9.21064749,3257.1,3256.6,0.45490001]
[1765509258144,3.65069112,3257.1,3257.0,0.4518]
[1765509259353,6.81360695,3257.1,3256.7,0.4549]
[1765509261160,5.65808177,3257.0,3256.6,1e-08]
[1765509261567,6.14080874,3256.9,3256.6,0.47140001]
[1765509262757,11.79870197,3257.0,3256.8,0.4524]
[1765509264439,11.79870197,3257.0,3256.6,0.47140001]
[1765509264924,5.91988177,3256.7,3256.6,1e-08]
[1765509265130,6.50035706,3256.7,3256.6,1e-08]
[1765509265349,6.95025706,3256.7,3256.6,1e-08]
[1765509265928,6.95470378,3256.7,3256.6,1e-08]
[1765509266625,10.02529671,3256.7,3256.6,1e-08]
[1765509267025,10.43080071,3256.7,3256.6,1e-08]
[1765509269528,9.98090071,3256.7,3256.6,1e-08]
[1765509269728,10.43080071,3256.7,3256.6,1e-08]
[1765509270861,10.02529671,3256.7,3256.6,1e-08]
[1765509274766,0.98597929,3256.6,3256.4,0.001]
[1765509275070,5.70322329,3256.4,3255.6,0.001]
[1765509275277,13.54022678,3256.4,3255.6,0.001]
[1765509275455,13.99302678,3256.4,3255.6,0.001]
[1765509276181,13.51767078,3256.4,3255.6,0.001]
[1765509277164,24.91177159,3256.4,3255.6,0.001]
[1765509277368,21.15625959,3256.4,3255.6,0.001]
[1765509278374,28.90969236,3256.4,3255.6,0.001]
[1765509278575,20.35950436,3256.4,3255.6,0.001]
[1765509279178,10.26862736,3256.4,3255.6,0.001]
[1765509279389,26.18520562,3256.4,3255.6,0.001]
[1765509279539,26.30820666,3256.4,3255.6,0.001]
[1765509279743,20.6426344,3256.4,3255.6,0.001]
[1765509279991,30.0,3255.9,3255.6,0.001]
[1765509280270,9.31758362,3255.7,3255.6,0.001]
[1765509280486,9.41098362,3255.7,3255.6,0.001]
[1765509281074,3.65201136,3255.7,3255.6,0.9248]
[1765509289664,3.65201136,3255.7,3255.6,0.4534]
[1765509290083,3.65201136,3255.7,3255.6,0.001]
[1765509290286,3.65201136,3255.7,3255.6,0.4826]
[1765509292678,9.31758362,3255.7,3255.6,0.4826]
[1765509293060,3.65201136,3255.7,3255.6,0.4826]
[1765509293389,3.65201136,3255.7,3255.6,0.9539]
[1765509300687,4.10841136,3255.7,3255.6,0.001]
[1765509301660,3.65201136,3255.7,3255.6,0.4826]
[1765509302069,3.65201136,3255.7,3255.6,0.9539]
[1765509302269,6.14212886,3256.2,3255.6,0.9539]
[1765509302588,9.21319329,3256.2,3255.7,0.4713]
[1765509302771,0.58047529,3256.2,3255.7,0.4713]
[1765509303371,6.24604755,3256.2,3255.6,0.001]
[1765509303565,0.58497529,3255.7,3255.6,0.001]
[1765509304593,3.65651136,3255.7,3255.6,0.001]
[1765509304993,4.12881136,3255.7,3255.6,0.001]
[1765509305160,4.12431136,3255.7,3255.6,0.001]
[1765509305564,4.12431136,3255.7,3255.6,0.4826]
[1765509305769,4.12431136,3255.7,3255.6,0.9539]
[1765509306293,3.65201136,3255.7,3255.6,0.9539]
[1765509308610,3.07153607,3255.7,3255.6,0.9539]
[1765509308899,6.1426948,3255.9,3255.6,0.9539]
[1765509309102,3.0713474,3255.9,3255.8,0.4816]
[1765509309267,3.0713474,3255.9,3255.8,0.9686]
[1765509309471,3.0713474,3255.9,3255.8,1.4399]
[1765509310891,0.58047529,3256.1,3255.8,1.4399]
[1765509311206,0.58047529,3256.1,3256.0,0.4816]
[1765509311684,0.58047529,3256.1,3256.0,0.9529]
[1765509313470,3.65163403,3256.1,3256.0,0.9529]
[1765509314321,3.07115874,3256.1,3256.0,0.9529]
[1765509314896,3.07115874,3256.1,3256.0,0.4816]
[1765509315198,9.66857622,3256.1,3255.8,0.487]
[1765509315398,9.66857622,3256.1,3255.8,0.9848]
[1765509317007,9.66857622,3256.1,3256.0,0.4858]
[1765509317008,3.07115874,3256.1,3256.0,0.4858]
[1765509317576,3.07106443,3256.2,3256.0,0.9836]
[1765509317800,3.65153972,3256.2,3256.1,0.1891]
[1765509318001,3.65153972,3256.2,3256.1,1.1547]
[1765509324381,3.65153972,3256.2,3256.1,1.6417]
[1765509328018,9.79366858,3256.2,3255.6,0.001]
[1765509328201,10.25006858,3256.2,3255.7,0.4901]
[1765509328405,10.25006858,3256.2,3255.7,0.9771]
[1765509328909,10.25006858,3256.2,3255.8,0.4901]
[1765509330082,3.65153972,3256.2,3256.1,0.4755]
[1765509331479,3.65153972,3256.2,3256.1,1.1587]
[1765509331885,3.65153972,3256.2,3256.1,0.4755]
[1765509332611,12.92980585,3256.2,3256.0,0.486]
[1765509332914,12.83710585,3256.2,3256.0,0.486]
[1765509333083,0.0963,3256.1,3255.7,0.486]
[1765509333701,0.0963,3256.1,3255.7,0.9761]
[1765509334414,0.0963,3256.1,3255.7,0.486]
[1765509334613,1.02967529,3255.8,3255.6,0.001]
[1765509334817,4.09771136,3255.7,3255.6,0.001]
[1765509335205,4.20101136,3255.7,3255.6,0.001]
[1765509337111,9.86271306,3255.7,3255.6,0.001]
[1765509339021,13.09071306,3255.7,3255.6,0.001]
[1765509339319,9.86271306,3255.7,3255.6,0.001]
[1765509339522,12.50669006,3255.7,3255.6,0.001]
[1765509339831,25.496835,3255.5,3254.2,0.001]
[1765509340122,6.33537699,3254.3,3254.2,0.001]
[1765509340945,3.65333274,3254.3,3254.2,0.4765]
[1765509341418,3.65333274,3254.3,3254.2,0.001]
[1765509341596,3.75013274,3254.3,3254.2,0.001]
[1765509341796,4.19933274,3254.3,3254.2,0.001]
[1765509342222,19.95455774,3254.3,3254.2,0.001]
[1765509342423,23.96769544,3254.3,3254.2,0.001]
[1765509342594,24.37319944,3254.3,3254.2,0.001]
[1765509342796,6.14609262,3254.1,3252.6,0.4554]
[1765509343005,0.1459,3253.7,3252.6,0.6415]
[1765509343308,5.9199017,3252.7,3251.9,0.1931]
[1765509343630,5.6617017,3252.2,3251.9,0.6485]
[1765509344001,6.24217699,3252.8,3252.1,0.4644]
[1765509344194,6.24217699,3252.8,3252.2,0.4554]
[1765509344920,9.22310694,3252.7,3252.2,0.4554]
[1765509345228,5.7544017,3252.3,3251.9,0.6485]
[1765509345435,5.7544017,3252.3,3251.0,0.6485]
[1765509345436,11.4161034,3252.0,3251.0,0.6485]
[1765509345621,5.6617017,3251.4,3251.1,0.4554]
[1765509345827,5.7544017,3252.0,3251.1,0.4554]
[1765509345828,5.6617017,3251.2,3251.1,0.4554]
[1765509346048,0.58047529,3251.8,3251.3,0.4644]
[1765509346249,7.08880692,3251.6,3250.8,0.4554]
[1765509346531,7.08880692,3251.6,3250.0,0.1931]
[1765509346532,1.56484389,3251.9,3250.2,0.487]
[1765509346698,1.56484389,3251.9,3250.3,3.10733358]
[1765509346899,0.58047529,3251.7,3250.3,3.56273358]
[1765509347207,0.58047529,3251.7,3250.4,0.4554]
[1765509348150,7.08880692,3251.6,3250.0,0.1931]
[1765509348344,0.58047529,3251.5,3250.1,0.4554]
[1765509348547,0.405504,3251.4,3250.1,0.4554]
[1765509348752,0.58047529,3251.0,3250.1,0.4554]
[1765509348960,9.22849758,3250.8,3250.1,0.4554]
[1765509349271,6.15233172,3250.8,3250.1,0.4554]
[1765509349421,6.15104432,3251.5,3250.7,0.4644]
[1765509349734,0.58047529,3251.4,3250.9,0.4644]
[1765509350547,0.58047529,3251.4,3250.9,0.9198]
[1765509351046,0.58047529,3251.2,3250.9,0.9198]
[1765509351418,0.58047529,3251.2,3251.1,0.6505]
[1765509352048,0.58047529,3251.2,3251.1,1.1059]
[1765509353218,3.0757874,3251.2,3251.1,1.1059]
[1765509354375,6.15100722,3251.5,3251.1,1.1059]
[1765509354524,6.15100722,3251.5,3251.2,0.4554]
[1765509354723,3.07550361,3251.5,3251.4,0.4644]
[1765509355123,6.150542,3251.8,3251.4,0.4644]
[1765509355325,0.58047529,3251.7,3251.4,0.4644]
[1765509355738,6.150542,3251.8,3251.6,0.4644]
[1765509356045,3.075271,3251.8,3251.7,0.4644]
[1765509356234,6.150542,3251.8,3251.4,0.4554]
[1765509356445,3.075271,3251.8,3251.7,0.4644]
[1765509357364,9.80500021,3252.2,3251.5,0.4554]
[1765509358036,9.80500021,3252.2,3251.2,0.488]
[1765509358242,10.26140021,3252.2,3251.2,0.9434]
[1765509358965,9.80500021,3252.2,3251.3,0.4554]
[1765509360943,3.65531693,3252.2,3252.1,0.6505]
[1765509361272,12.87984185,3252.2,3251.3,0.4554]
[1765509361473,12.87984185,3252.2,3251.1,0.1861]
[1765509361474,12.87984185,3252.2,3250.5,0.58047529]
[1765509361674,0.4564,3252.1,3251.1,0.1861]
[1765509361977,0.92362967,3252.1,3251.1,0.1861]
[1765509362272,9.80500021,3252.2,3251.2,0.4554]
[1765509362575,9.80500021,3252.2,3251.3,0.488]
[1765509362977,3.65531693,3252.2,3252.1,0.4644]
[1765509363282,6.73015857,3252.2,3251.4,0.4554]
[1765509363460,3.65531693,3252.2,3252.1,0.4644]
[1765509366168,6.82285857,3252.2,3251.8,0.4554]
[1765509366488,6.73015857,3252.2,3251.8,0.4554]
[1765509367085,3.65531693,3252.2,3252.1,0.4644]
[1765509369576,3.07484164,3252.2,3252.1,0.4644]
[1765509369893,3.07484164,3252.2,3250.4,0.95126337]
[1765509369894,0.58047529,3252.1,3250.4,0.4554]
[1765509370103,0.58047529,3252.1,3250.0,0.1931]
[1765509370104,7.08530611,3251.6,3250.0,0.1931]
[1765509370305,0.58047529,3251.4,3250.3,0.4554]
[1765509370592,0.58047529,3251.4,3250.0,0.6485]
[1765509370593,0.405504,3251.3,3250.0,0.6485]
[1765509370767,0.861904,3251.3,3250.0,0.6485]
[1765509371169,0.4564,3251.2,3250.0,0.6485]
[1765509371481,0.488,3251.1,3250.0,0.6485]
[1765509371992,0.4564,3251.0,3250.0,0.6485]
[1765509372293,0.58047529,3250.8,3250.0,0.6485]
[1765509372651,1.03687529,3250.8,3250.0,0.6485]
[1765509373085,0.4564,3250.7,3249.8,0.488]
[1765509373597,0.4564,3250.7,3249.7,0.9778]
[1765509374002,0.58047529,3250.8,3249.8,0.51957112]
[1765509374181,0.58047529,3250.8,3249.8,0.4888]
[1765509374494,0.58047529,3250.6,3249.8,0.4888]
[1765509374681,0.58047529,3250.6,3250.5,0.4531]
[1765509374884,0.58047529,3250.6,3249.7,0.489]
[1765509374885,0.405504,3250.5,3249.7,0.001]
[1765509375196,0.6035,3249.8,3249.7,0.001]
[1765509375401,0.405504,3250.5,3249.7,0.001]
[1765509375558,0.405504,3250.5,3249.7,0.4601]
[1765509375559,0.489,3250.4,3249.7,0.4601]
[1765509376095,1.25377492,3250.6,3249.8,0.4747]
[1765509376399,0.58047529,3250.4,3249.8,0.4747]
[1765509376605,0.58047529,3250.4,3250.3,0.4591]
[1765509376759,0.58047529,3250.4,3249.8,0.4747]
[1765509377982,0.58047529,3250.4,3250.3,0.4591]
[1765509378196,0.58047529,3250.4,3250.3,0.6478]
[1765509378369,3.07626049,3250.7,3250.3,1.1225]
[1765509378569,3.07626049,3250.7,3250.6,0.4591]
[1765509378970,3.07626049,3250.7,3250.6,0.9338]
[1765509379695,0.58047529,3251.2,3250.6,0.4591]
[1765509380614,0.58047529,3251.2,3249.7,3.07820624]
[1765509380787,0.58047529,3251.2,3250.1,0.1887]
[1765509381297,1.03687529,3251.2,3250.2,0.4747]
[1765509381697,0.58047529,3251.0,3250.2,0.4747]
[1765509381877,0.0927,3250.3,3249.7,0.001]
[1765509382071,0.6054,3250.9,3249.7,0.49]
[1765509382307,0.4564,3250.8,3249.7,0.001]
[1765509383101,0.894504,3250.7,3249.7,0.001]
[1765509383597,0.64953793,3250.6,3249.7,0.001]
[1765509383970,0.58047529,3250.4,3249.7,0.001]
[1765509384377,0.0927,3249.8,3249.7,0.001]
[1765509385374,0.5455,3249.8,3249.7,0.001]
[1765509385876,3.62261243,3249.8,3249.7,0.001]
[1765509386081,4.20308772,3249.8,3249.7,0.001]
[1765509386376,11.70462934,3249.8,3249.7,0.001]
[1765509388289,11.29912534,3249.8,3249.7,0.001]
[1765509389608,11.70462934,3249.8,3249.7,0.001]
[1765509389810,17.22164634,3249.8,3249.7,0.001]
[1765509390001,8.14809472,3249.8,3249.7,0.001]
[1765509390379,12.07390372,3249.8,3249.7,0.001]
[1765509391024,10.35943972,3249.8,3249.7,0.001]
[1765509391313,3.75028772,3249.8,3249.7,0.001]
[1765509392208,3.65758772,3249.8,3249.7,0.4601]
[1765509392583,3.07711243,3249.8,3249.7,0.9348]
[1765509393217,6.15308884,3250.4,3249.7,0.9348]
[1765509393424,0.58047529,3250.3,3249.9,0.4591]
[1765509393729,9.22963326,3250.4,3249.7,0.001]
[1765509393894,0.58047529,3250.3,3249.8,0.4747]
[1765509394219,0.58047529,3250.1,3249.8,0.4747]
[1765509394718,0.58047529,3250.1,3250.0,0.4591]
[1765509394920,6.15346746,3250.2,3250.0,0.4591]
[1765509395123,3.65720902,3250.2,3250.1,1.1225]
[1765509395691,3.07673373,3250.2,3250.1,1.1225]
[1765509396818,6.15233172,3250.8,3250.1,1.1225]
[1765509396996,0.58047529,3250.7,3250.2,0.9338]
[1765509397391,0.58047529,3250.7,3250.3,0.4747]
[1765509397832,0.58047529,3250.7,3250.6,0.4591]